fUSD/lending_fUSD_20250106
["ID","MTS","AMOUNT","RATE_DAILY","PERIOD"]
[347898689,1736189197882,-1906.5239935,7.934e-05,2]
[347898690,1736189197903,-7.87106667,7.935e-05,2]
[347898691,1736189197925,-1500.0,7.935e-05,2]
[347898692,1736189197946,-250.0,8.17e-05,2]
[347898693,1736189197968,-160.4,8.219e-05,2]
[347898694,1736189197989,-4261.5,8.219e-05,2]
[347898695,1736189198011,-250.0,8.219e-05,2]
[347898696,1736189198033,-1338.9,8.219e-05,2]
[347898697,1736189198055,-324.80493983,8.498e-05,2]
[347898698,1736189203044,-37.39706017,8.498e-05,2]
[347898699,1736189203067,-6431.965,8.498e-05,2]
[347898700,1736189203088,-1012.9376,8.499e-05,2]
[347898701,1736189203113,-500.0,8.5e-05,2]
[347898702,1736189203135,-2017.70033983,8.5e-05,2]
[347898703,1736189207722,-8515.68146017,8.5e-05,2]
[347898704,1736189207744,-1484.31853983,8.5e-05,2]
[347898705,1736189211547,-10000.0,8.5e-05,2]
[347898706,1736189216654,-723.77,7.915e-05,2]
[347898707,1736189216676,-9276.23,8.5e-05,2]
[347898708,1736189222265,-740.08,7.935e-05,2]
[347898709,1736189222288,-9259.92,8.5e-05,2]
[347898710,1736189226431,-10000.0,8.5e-05,2]
[347898711,1736189230633,-10000.0,8.5e-05,2]
[347898712,1736189235808,-10000.0,8.5e-05,2]
[347898713,1736189240679,-10000.0,8.5e-05,2]
[347898716,1736189245548,-10000.0,8.5e-05,2]
[347898719,1736189250659,-10000.0,8.5e-05,2]
[347898720,1736189254787,-10000.0,8.5e-05,2]
[347898721,1736189258503,-373.13696017,8.5e-05,2]
[347898722,1736189258526,-1000.0,8.5e-05,2]
[347898723,1736189258547,-8626.86303983,8.52e-05,2]
[347898724,1736189262571,-10000.0,8.5e-05,2]
[347898725,1736189266256,-10000.0,8.5e-05,2]
[347898726,1736189271206,-10000.0,8.5e-05,2]
[347898727,1736189277513,-10000.0,8.5e-05,2]
[347898728,1736189281557,-10000.0,8.5e-05,2]
[347898729,1736189285361,-10000.0,8.5e-05,2]
[347898730,1736189289668,-10000.0,8.5e-05,2]
[347898731,1736189294585,-3264.3363,8.5e-05,2]
[347898732,1736189294607,-6735.6637,8.52e-05,2]
[347898733,1736189297855,-8662.52906501,8.52e-05,2]
[347898734,1736189297882,-150.0,8.572e-05,2]
[347898735,1736189297904,-499.40250892,8.573e-05,2]
[347898736,1736189297925,-151.78364948,8.573e-05,2]
[347898737,1736189297947,-151.02062661,8.573e-05,2]
[347898738,1736189297968,-385.26414998,8.573e-05,2]
[347898739,1736189302293,-114.73585002,8.573e-05,2]
[347898740,1736189302316,-151.79180435,8.573e-05,2]
[347898741,1736189302339,-151.79203861,8.573e-05,2]
[347898742,1736189302361,-151.78364948,8.573e-05,2]
[347898743,1736189302382,-500.0,8.573e-05,2]
[347898744,1736189302405,-1032.3558,8.575e-05,2]
[347898745,1736189302429,-500.0,8.598e-05,2]
[347898746,1736189302454,-500.0,8.598e-05,2]
[347898747,1736189302476,-500.0,8.598e-05,2]
[347898748,1736189302502,-500.0,8.598e-05,2]
[347898749,1736189302528,-500.0,8.598e-05,2]
[347898750,1736189302551,-500.0,8.598e-05,2]
[347898751,1736189302574,-359.69016016,8.599e-05,2]
[347898752,1736189302596,-579.34219157,8.599e-05,2]
[347898753,1736189302617,-500.0,8.599e-05,2]
[347898754,1736189302874,-500.0,8.599e-05,2]
[347898755,1736189302897,-636.66,8.599e-05,2]
[347898756,1736189302919,-184.94180573,8.599e-05,2]
[347898757,1736189302941,-500.0,8.599e-05,2]
[347898758,1736189302964,-652.912889,8.599e-05,2]
[347898759,1736189302986,-500.0,8.599e-05,2]
[347898760,1736189303008,-483.99381108,8.599e-05,2]
[347898761,1736189307283,-16.00618892,8.599e-05,2]
[347898762,1736189307308,-625.88553,8.599e-05,2]
[347898763,1736189307331,-792.9,8.599e-05,2]
[347898764,1736189307354,-515.09115546,8.599e-05,2]
[347898765,1736189307378,-500.0,8.599e-05,2]
[347898766,1736189307400,-500.0,8.599e-05,2]
[347898767,1736189307424,-724.77,8.599e-05,2]
[347898768,1736189307448,-505.94,8.599e-05,2]
[347898769,1736189307471,-500.0,8.599e-05,2]
[347898770,1736189307493,-500.0,8.599e-05,2]
[347898771,1736189307521,-500.0,8.599e-05,2]
[347898772,1736189307543,-591.45312377,8.599e-05,2]
[347898773,1736189307566,-500.0,8.599e-05,2]
[347898774,1736189307589,-442.81694314,8.599e-05,2]
[347898775,1736189307611,-500.0,8.599e-05,2]
[347898776,1736189307633,-500.0,8.599e-05,2]
[347898777,1736189307655,-500.0,8.599e-05,2]
[347898778,1736189307678,-1150.01,8.599e-05,2]
[347898779,1736189307701,-135.12705871,8.599e-05,2]
[347898780,1736189312740,-364.87294129,8.599e-05,2]
[347898781,1736189312763,-500.0,8.599e-05,2]
[347898782,1736189312785,-500.0,8.599e-05,2]
[347898783,1736189312808,-500.0,8.599e-05,2]
[347898784,1736189312831,-500.0,8.599e-05,2]
[347898785,1736189312854,-500.0,8.599e-05,2]
[347898786,1736189312876,-500.0,8.599e-05,2]
[347898787,1736189312900,-500.0,8.599e-05,2]
[347898788,1736189312921,-252.09,8.599e-05,2]
[347898789,1736189312944,-500.0,8.599e-05,2]
[347898790,1736189312966,-500.38,8.599e-05,2]
[347898791,1736189312987,-500.0,8.599e-05,2]
[347898792,1736189313007,-500.0,8.599e-05,2]
[347898793,1736189313028,-500.0,8.599e-05,2]
[347898794,1736189313050,-500.0,8.599e-05,2]
[347898795,1736189313072,-500.0,8.599e-05,2]
[347898796,1736189313094,-500.0,8.599e-05,2]
[347898797,1736189313117,-1543.22,8.599e-05,2]
[347898798,1736189313140,-256.84666282,8.599e-05,2]
[347898799,1736189313162,-82.59039589,8.599e-05,2]
[347898800,1736189317029,-500.0,8.598e-05,2]
[347898801,1736189317050,-417.40960411,8.599e-05,2]
[347898802,1736189317071,-500.0,8.599e-05,2]
[347898803,1736189317093,-500.0,8.599e-05,2]
[347898804,1736189317113,-500.65433567,8.599e-05,2]
[347898805,1736189317135,-500.0,8.599e-05,2]
[347898806,1736189317156,-500.0,8.599e-05,2]
[347898807,1736189317178,-500.0,8.599e-05,2]
[347898808,1736189317203,-500.0,8.599e-05,2]
[347898809,1736189317224,-500.0,8.599e-05,2]
[347898810,1736189317247,-500.48833845,8.599e-05,2]
[347898811,1736189317272,-500.0,8.599e-05,2]
[347898812,1736189317294,-500.0,8.599e-05,2]
[347898813,1736189317321,-440.72,8.599e-05,2]
[347898814,1736189317342,-500.50102348,8.599e-05,2]
[347898815,1736189317364,-500.0,8.599e-05,2]
[347898816,1736189317386,-500.0,8.599e-05,2]
[347898817,1736189317407,-500.0,8.599e-05,2]
[347898818,1736189317429,-500.0,8.599e-05,2]
[347898819,1736189317452,-500.0,8.599e-05,2]
[347898820,1736189317473,-140.22669829,8.599e-05,2]
[347898821,1736189322355,-986.85,8.598e-05,2]
[347898822,1736189322378,-500.0,8.598e-05,2]
[347898823,1736189322401,-360.09098326,8.599e-05,2]
[347898824,1736189322423,-500.0,8.599e-05,2]
[347898825,1736189322446,-500.0,8.599e-05,2]
[347898826,1736189322469,-502.04146378,8.599e-05,2]
[347898827,1736189322492,-428.389788,8.599e-05,2]
[347898828,1736189322518,-500.0,8.599e-05,2]
[347898829,1736189322541,-500.0,8.599e-05,2]
[347898830,1736189322563,-167.68,8.599e-05,2]
[347898831,1736189322583,-471.52733701,8.599e-05,2]
[347898832,1736189322606,-500.0,8.599e-05,2]
[347898833,1736189322627,-500.45813681,8.599e-05,2]
[347898834,1736189322650,-500.0,8.599e-05,2]
[347898835,1736189322673,-434.97513068,8.599e-05,2]
[347898836,1736189322695,-501.40623838,8.599e-05,2]
[347898837,1736189322723,-500.0,8.599e-05,2]
[347898838,1736189322746,-500.78159102,8.599e-05,2]
[347898839,1736189322767,-500.0,8.599e-05,2]
[347898840,1736189322788,-258.67232802,8.599e-05,2]
[347898841,1736189322809,-387.12700304,8.599e-05,2]
[347898842,1736189326290,-500.0,8.598e-05,2]
[347898843,1736189326313,-113.62353831,8.599e-05,2]
[347898844,1736189326335,-500.0,8.599e-05,2]
[347898845,1736189326359,-565.94694551,8.599e-05,2]
[347898846,1736189326380,-500.77182086,8.599e-05,2]
[347898847,1736189326401,-500.44863121,8.599e-05,2]
[347898848,1736189326423,-500.38425555,8.599e-05,2]
[347898849,1736189326445,-500.0,8.599e-05,2]
[347898850,1736189326470,-500.41095643,8.599e-05,2]
[347898851,1736189326491,-641.89437771,8.599e-05,2]
[347898852,1736189326514,-500.0,8.599e-05,2]
[347898853,1736189326538,-500.0,8.599e-05,2]
[347898854,1736189326560,-500.0,8.599e-05,2]
[347898855,1736189326581,-500.57132054,8.599e-05,2]
[347898856,1736189326602,-500.0,8.599e-05,2]
[347898857,1736189326626,-500.0,8.599e-05,2]
[347898858,1736189326648,-570.45412714,8.599e-05,2]
[347898859,1736189326669,-625.286206,8.599e-05,2]
[347898860,1736189326690,-512.47906064,8.599e-05,2]
[347898861,1736189326715,-467.7287601,8.599e-05,2]
[347898862,1736189330261,-32.2712399,8.599e-05,2]
[347898863,1736189330287,-503.59065078,8.599e-05,2]
[347898864,1736189330311,-500.0,8.599e-05,2]
[347898865,1736189330333,-502.88405194,8.599e-05,2]
[347898866,1736189330355,-500.0,8.599e-05,2]
[347898867,1736189330376,-496.55287033,8.599e-05,2]
[347898868,1736189330397,-500.0,8.599e-05,2]
[347898869,1736189330418,-500.0,8.599e-05,2]
[347898870,1736189330440,-500.0,8.599e-05,2]
[347898871,1736189330699,-500.0,8.599e-05,2]
[347898872,1736189330727,-500.0,8.599e-05,2]
[347898873,1736189330750,-500.0,8.599e-05,2]
[347898874,1736189330773,-500.0,8.599e-05,2]
[347898875,1736189330795,-504.99547243,8.599e-05,2]
[347898876,1736189330818,-500.55396499,8.599e-05,2]
[347898877,1736189330839,-631.29183648,8.599e-05,2]
[347898878,1736189330861,-500.0,8.599e-05,2]
[347898879,1736189330884,-500.0,8.599e-05,2]
[347898880,1736189330907,-500.0,8.599e-05,2]
[347898881,1736189330928,-529.67857793,8.599e-05,2]
[347898882,1736189330951,-298.18133522,8.599e-05,2]
[347898883,1736189334679,-201.81866478,8.599e-05,2]
[347898884,1736189334700,-500.0,8.599e-05,2]
[347898885,1736189334721,-500.0,8.599e-05,2]
[347898886,1736189334746,-501.29855341,8.599e-05,2]
[347898887,1736189334768,-500.0,8.599e-05,2]
[347898888,1736189334791,-500.0,8.599e-05,2]
[347898889,1736189334816,-500.0,8.599e-05,2]
[347898890,1736189334839,-597.57820962,8.599e-05,2]
[347898891,1736189334860,-500.0,8.599e-05,2]
[347898892,1736189334883,-508.17425266,8.599e-05,2]
[347898893,1736189334905,-500.0,8.599e-05,2]
[347898894,1736189334929,-500.0,8.599e-05,2]
[347898895,1736189334951,-500.0,8.599e-05,2]
[347898896,1736189334973,-526.8,8.599e-05,2]
[347898897,1736189334996,-500.0,8.599e-05,2]
[347898898,1736189335018,-570.90027192,8.599e-05,2]
[347898899,1736189335040,-624.42,8.599e-05,2]
[347898900,1736189335063,-500.97899386,8.599e-05,2]
[347898901,1736189335086,-500.0,8.599e-05,2]
[347898902,1736189335107,-468.03105375,8.599e-05,2]
[347898903,1736189339757,-1111.18,8.598e-05,2]
[347898904,1736189339779,-67.82880031,8.599e-05,2]
[347898905,1736189339802,-500.0,8.599e-05,2]
[347898906,1736189339824,-500.0,8.599e-05,2]
[347898907,1736189339848,-500.0,8.599e-05,2]
[347898908,1736189339869,-619.3602057,8.599e-05,2]
[347898909,1736189339890,-500.0,8.599e-05,2]
[347898910,1736189339911,-500.0,8.599e-05,2]
[347898911,1736189339933,-500.0,8.599e-05,2]
[347898912,1736189339957,-454.89388196,8.599e-05,2]
[347898913,1736189339978,-500.0,8.599e-05,2]
[347898914,1736189340000,-500.0,8.599e-05,2]
[347898915,1736189340027,-500.0,8.599e-05,2]
[347898916,1736189340051,-500.0,8.599e-05,2]
[347898917,1736189340073,-581.64809109,8.599e-05,2]
[347898918,1736189340095,-535.42,8.599e-05,2]
[347898919,1736189340118,-500.0,8.599e-05,2]
[347898920,1736189340141,-500.0,8.599e-05,2]
[347898921,1736189340163,-500.0,8.599e-05,2]
[347898922,1736189340186,-129.66902094,8.599e-05,2]
[347898923,1736189344348,-300.0,8.598e-05,2]
[347898924,1736189344371,-370.86451081,8.599e-05,2]
[347898925,1736189344394,-500.0,8.599e-05,2]
[347898926,1736189344416,-500.0,8.599e-05,2]
[347898927,1736189344440,-500.0,8.599e-05,2]
[347898928,1736189344462,-500.0,8.599e-05,2]
[347898929,1736189344486,-500.0,8.599e-05,2]
[347898930,1736189344510,-500.0,8.599e-05,2]
[347898931,1736189344546,-500.0,8.599e-05,2]
[347898932,1736189344568,-500.24333062,8.599e-05,2]
[347898933,1736189344592,-500.0,8.599e-05,2]
[347898934,1736189344614,-500.0,8.599e-05,2]
[347898935,1736189344638,-500.0,8.599e-05,2]
[347898936,1736189344662,-165.28,8.599e-05,2]
[347898937,1736189344685,-1170.7,8.599e-05,2]
[347898938,1736189344707,-500.0,8.599e-05,2]
[347898939,1736189344729,-500.0,8.599e-05,2]
[347898940,1736189344751,-530.8801551,8.599e-05,2]
[347898941,1736189344773,-500.0,8.599e-05,2]
[347898942,1736189344796,-462.03200347,8.599e-05,2]
[347898953,1736189348740,-37.96799653,8.599e-05,2]
[347898954,1736189348760,-375.61,8.599e-05,2]
[347898955,1736189348786,-500.0,8.599e-05,2]
[347898956,1736189348809,-1677.96,8.599e-05,2]
[347898957,1736189348832,-2790.48,8.599e-05,2]
[347898958,1736189348854,-500.0,8.599e-05,2]
[347898959,1736189348876,-500.0,8.599e-05,2]
[347898960,1736189348898,-502.87625818,8.599e-05,2]
[347898961,1736189348921,-500.0,8.599e-05,2]
[347898962,1736189348942,-501.27876687,8.599e-05,2]
[347898963,1736189348964,-500.0,8.599e-05,2]
[347898964,1736189348986,-500.0,8.599e-05,2]
[347898965,1736189349007,-500.0,8.599e-05,2]
[347898966,1736189349033,-500.0,8.599e-05,2]
[347898967,1736189349054,-113.82697842,8.599e-05,2]
[347899076,1736189352605,-500.0,8.598e-05,2]
[347899078,1736189352629,-801.77,8.598e-05,2]
[347899080,1736189352652,-387.52002971,8.599e-05,2]
[347899082,1736189352676,-500.0,8.599e-05,2]
[347899084,1736189352699,-500.0,8.599e-05,2]
[347899086,1736189352722,-1033.45,8.599e-05,2]
[347899088,1736189352745,-501.35526751,8.599e-05,2]
[347899090,1736189352768,-500.0,8.599e-05,2]
[347899091,1736189352791,-500.0,8.599e-05,2]
[347899093,1736189352813,-500.0,8.599e-05,2]
[347899095,1736189352836,-1814.47,8.599e-05,2]
[347899097,1736189352860,-500.0,8.599e-05,2]
[347899099,1736189352881,-500.0,8.599e-05,2]
[347899101,1736189352903,-1461.43470278,8.599e-05,2]
[347899169,1736189356768,-301.15529722,8.599e-05,2]
[347899170,1736189356793,-500.0,8.599e-05,2]
[347899171,1736189356817,-500.0,8.599e-05,2]
[347899172,1736189356839,-231.8788539,8.599e-05,2]
[347899173,1736189356862,-643.29,8.599e-05,2]
[347899174,1736189356883,-500.0,8.599e-05,2]
[347899175,1736189356906,-588.8,8.599e-05,2]
[347899176,1736189356928,-500.0,8.599e-05,2]
[347899177,1736189356949,-500.0,8.599e-05,2]
[347899178,1736189356970,-217.89258381,8.599e-05,2]
[347899179,1736189356991,-500.32570286,8.599e-05,2]
[347899180,1736189357013,-500.0,8.599e-05,2]
[347899181,1736189357038,-297.86,8.599e-05,2]
[347899182,1736189357061,-500.0,8.599e-05,2]
[347899183,1736189357084,-706.24,8.599e-05,2]
[347899184,1736189357106,-500.0,8.599e-05,2]
[347899185,1736189357129,-500.0,8.599e-05,2]
[347899186,1736189357159,-443.31117043,8.599e-05,2]
[347899187,1736189357190,-500.0,8.599e-05,2]
[347899188,1736189357215,-308.49014673,8.599e-05,2]
[347899189,1736189357245,-500.0,8.599e-05,2]
[347899190,1736189357274,-178.03313141,8.599e-05,2]
[347899191,1736189357305,-82.72311364,8.599e-05,2]
[347899192,1736189360995,-417.27688636,8.599e-05,2]
[347899193,1736189361023,-500.0,8.599e-05,2]
[347899194,1736189361049,-500.0,8.599e-05,2]
[347899195,1736189361076,-500.0,8.599e-05,2]
[347899196,1736189361102,-989.94,8.599e-05,2]
[347899197,1736189361128,-250.58279796,8.599e-05,2]
[347899198,1736189361154,-500.0,8.599e-05,2]
[347899199,1736189361181,-500.0,8.599e-05,2]
[347899200,1736189361207,-500.0,8.599e-05,2]
[347899201,1736189361232,-500.0,8.599e-05,2]
[347899202,1736189361259,-500.0,8.599e-05,2]
[347899203,1736189361287,-173.29,8.599e-05,2]
[347899204,1736189361313,-557.66,8.599e-05,2]
[347899205,1736189361341,-500.0,8.599e-05,2]
[347899206,1736189361368,-500.0,8.599e-05,2]
[347899207,1736189361394,-500.0,8.599e-05,2]
[347899208,1736189361420,-500.0,8.599e-05,2]
[347899209,1736189361447,-500.0,8.599e-05,2]
[347899210,1736189361473,-500.0,8.599e-05,2]
[347899211,1736189361500,-519.82,8.599e-05,2]
[347899212,1736189361531,-91.43031568,8.599e-05,2]
[347899213,1736189366980,-500.0,8.598e-05,2]
[347899214,1736189367002,-408.56968432,8.599e-05,2]
[347899215,1736189367027,-501.28939028,8.599e-05,2]
[347899216,1736189367051,-500.0,8.599e-05,2]
[347899217,1736189367073,-522.43,8.599e-05,2]
[347899218,1736189367095,-506.18962622,8.599e-05,2]
[347899219,1736189367118,-2742.45,8.599e-05,2]
[347899220,1736189367140,-500.0,8.599e-05,2]
[347899221,1736189367162,-504.10894302,8.599e-05,2]
[347899222,1736189367184,-500.0,8.599e-05,2]
[347899223,1736189367205,-501.45983535,8.599e-05,2]
[347899224,1736189367227,-540.56099685,8.599e-05,2]
[347899225,1736189367250,-552.61376621,8.599e-05,2]
[347899226,1736189367279,-832.31,8.599e-05,2]
[347899227,1736189367301,-388.01775775,8.599e-05,2]
[347899228,1736189373380,-1156.68,8.598e-05,2]
[347899229,1736189373404,-500.0,8.598e-05,2]
[347899230,1736189373428,-111.98224225,8.599e-05,2]
[347899231,1736189373451,-582.56445231,8.599e-05,2]
[347899232,1736189373475,-505.80617528,8.599e-05,2]
[347899233,1736189373499,-500.0,8.599e-05,2]
[347899234,1736189373527,-500.0,8.599e-05,2]
[347899235,1736189373553,-500.0,8.599e-05,2]
[347899236,1736189373578,-500.0,8.599e-05,2]
[347899237,1736189373601,-500.0,8.599e-05,2]
[347899238,1736189373624,-500.0,8.599e-05,2]
[347899239,1736189373648,-500.0,8.599e-05,2]
[347899240,1736189373672,-504.1107212,8.599e-05,2]
[347899241,1736189373696,-500.0,8.599e-05,2]
[347899242,1736189373720,-500.0,8.599e-05,2]
[347899243,1736189373743,-504.24715589,8.599e-05,2]
[347899244,1736189373766,-500.0,8.599e-05,2]
[347899245,1736189373793,-500.0,8.599e-05,2]
[347899246,1736189373816,-315.86066446,8.599e-05,2]
[347899247,1736189373839,-318.74858861,8.599e-05,2]
[347899248,1736189378644,-184.52479939,8.599e-05,2]
[347899249,1736189378665,-272.71176377,8.599e-05,2]
[347899250,1736189378687,-500.0,8.599e-05,2]
[347899251,1736189378709,-501.52093346,8.599e-05,2]
[347899252,1736189378730,-500.0,8.599e-05,2]
[347899253,1736189378751,-315.78114785,8.599e-05,2]
[347899254,1736189378777,-557.98468489,8.599e-05,2]
[347899255,1736189378798,-503.24409583,8.599e-05,2]
[347899256,1736189378820,-4761.06,8.599e-05,2]
[347899257,1736189378841,-500.4692841,8.599e-05,2]
[347899258,1736189378862,-314.95949973,8.599e-05,2]
[347899259,1736189378884,-500.0,8.599e-05,2]
[347899260,1736189378908,-587.74379098,8.599e-05,2]
[347899261,1736189383590,-500.0,8.598e-05,2]
[347899262,1736189383616,-887.49620902,8.599e-05,2]
[347899263,1736189383639,-639.73007575,8.599e-05,2]
[347899264,1736189383662,-500.0,8.599e-05,2]
[347899265,1736189383684,-207.40207054,8.599e-05,2]
[347899266,1736189383708,-315.66377916,8.599e-05,2]
[347899267,1736189383733,-839.07,8.599e-05,2]
[347899268,1736189383755,-500.72818639,8.599e-05,2]
[347899269,1736189383781,-500.0,8.599e-05,2]
[347899270,1736189383803,-502.67374507,8.599e-05,2]
[347899271,1736189383825,-500.43378489,8.599e-05,2]
[347899272,1736189383848,-506.44241781,8.599e-05,2]
[347899273,1736189383871,-500.0,8.599e-05,2]
[347899274,1736189383893,-500.75912301,8.599e-05,2]
[347899275,1736189383915,-500.0,8.599e-05,2]
[347899276,1736189383937,-1617.62,8.599e-05,2]
[347899277,1736189383958,-481.98060836,8.599e-05,2]
[347899278,1736189388482,-500.0,8.598e-05,2]
[347899279,1736189388505,-116.01165364,8.599e-05,2]
[347899280,1736189388530,-500.0,8.599e-05,2]
[347899281,1736189388554,-191.91519275,8.599e-05,2]
[347899282,1736189388579,-1273.42,8.599e-05,2]
[347899283,1736189388601,-500.0,8.599e-05,2]
[347899284,1736189388623,-500.0,8.599e-05,2]
[347899285,1736189388645,-500.0,8.599e-05,2]
[347899286,1736189388667,-500.0,8.599e-05,2]
[347899287,1736189388689,-935.08,8.599e-05,2]
[347899288,1736189388711,-500.0,8.599e-05,2]
[347899289,1736189388733,-500.0,8.599e-05,2]
[347899290,1736189388756,-1861.95,8.599e-05,2]
[347899291,1736189388781,-500.0,8.599e-05,2]
[347899292,1736189388803,-500.0,8.599e-05,2]
[347899293,1736189388828,-351.46,8.599e-05,2]
[347899294,1736189388849,-270.16315361,8.599e-05,2]
[347899295,1736189392935,-229.83684639,8.599e-05,2]
[347899296,1736189392959,-500.0,8.599e-05,2]
[347899297,1736189393187,-173.708725,8.599e-05,2]
[347899298,1736189393226,-500.0,8.599e-05,2]
[347899299,1736189393249,-736.89,8.599e-05,2]
[347899300,1736189393272,-500.0,8.599e-05,2]
[347899301,1736189393302,-500.0,8.599e-05,2]
[347899302,1736189393326,-500.0,8.599e-05,2]
[347899303,1736189393350,-500.0,8.599e-05,2]
[347899304,1736189393375,-255.64,8.599e-05,2]
[347899305,1736189393397,-500.0,8.599e-05,2]
[347899306,1736189393419,-500.0,8.599e-05,2]
[347899307,1736189393444,-2848.75,8.599e-05,2]
[347899308,1736189393467,-181.557728,8.599e-05,2]
[347899309,1736189393490,-500.0,8.599e-05,2]
[347899310,1736189393513,-159.78400911,8.599e-05,2]
[347899311,1736189393539,-500.0,8.599e-05,2]
[347899312,1736189393562,-413.8326915,8.599e-05,2]
[347899313,1736189396991,-1000.0,8.219e-05,2]
[347899314,1736189397015,-86.1673085,8.599e-05,2]
[347899315,1736189397038,-500.0,8.599e-05,2]
[347899316,1736189397059,-500.0,8.599e-05,2]
[347899317,1736189397082,-500.0,8.599e-05,2]
[347899318,1736189397105,-500.0,8.599e-05,2]
[347899319,1736189397129,-500.0,8.599e-05,2]
[347899320,1736189397151,-500.0,8.599e-05,2]
[347899321,1736189397173,-500.0,8.599e-05,2]
[347899322,1736189397195,-358.57720316,8.599e-05,2]
[347899323,1736189397216,-478.96,8.599e-05,2]
[347899324,1736189397237,-500.0,8.599e-05,2]
[347899325,1736189397258,-500.0,8.599e-05,2]
[347899326,1736189397280,-500.0,8.599e-05,2]
[347899327,1736189397309,-184.582715,8.599e-05,2]
[347899328,1736189397332,-500.0,8.599e-05,2]
[347899329,1736189397355,-1682.36,8.599e-05,2]
[347899330,1736189397377,-500.0,8.599e-05,2]
[347899331,1736189397399,-209.35277334,8.599e-05,2]
[347899332,1736189401240,-1623.51722666,8.599e-05,2]
[347899333,1736189401262,-500.0,8.599e-05,2]
[347899334,1736189401285,-500.0,8.599e-05,2]
[347899335,1736189401314,-500.0,8.599e-05,2]
[347899336,1736189401338,-500.0,8.599e-05,2]
[347899337,1736189401362,-500.0,8.599e-05,2]
[347899338,1736189401386,-500.0,8.599e-05,2]
[347899339,1736189401409,-500.0,8.599e-05,2]
[347899340,1736189401433,-500.0,8.599e-05,2]
[347899341,1736189401455,-500.0,8.599e-05,2]
[347899342,1736189401476,-513.46168575,8.599e-05,2]
[347899343,1736189401497,-500.0,8.599e-05,2]
[347899344,1736189401519,-502.31936556,8.599e-05,2]
[347899345,1736189401545,-498.37823378,8.599e-05,2]
[347899346,1736189401568,-500.0,8.599e-05,2]
[347899347,1736189401592,-313.91607513,8.599e-05,2]
[347899348,1736189401616,-1048.40741312,8.6e-05,2]
[347899349,1736189412668,-300.0,8.598e-05,2]
[347899350,1736189412690,-500.0,8.598e-05,2]
[347899351,1736189412712,-500.0,8.598e-05,2]
[347899352,1736189412735,-500.0,8.598e-05,2]
[347899353,1736189412756,-500.0,8.598e-05,2]
[347899354,1736189412779,-500.0,8.599e-05,2]
[347899355,1736189412801,-500.0,8.599e-05,2]
[347899356,1736189412823,-500.0,8.599e-05,2]
[347899357,1736189412844,-500.0,8.599e-05,2]
[347899358,1736189412865,-500.0,8.599e-05,2]
[347899359,1736189412885,-500.0,8.599e-05,2]
[347899360,1736189412908,-4700.0,8.6e-05,2]
[347899369,1736189431728,-349.57893753,8.598e-05,2]
[347899370,1736189431891,-239.45106247,8.598e-05,2]
[347899371,1736189431901,-500.0,8.599e-05,2]
[347899372,1736189431911,-545.13328385,8.599e-05,2]
[347899373,1736189431920,-500.0,8.599e-05,2]
[347899374,1736189431930,-500.0,8.599e-05,2]
[347899375,1736189431939,-500.0,8.599e-05,2]
[347899376,1736189431950,-1766.5,8.599e-05,2]
[347899377,1736189431964,-152.36700332,8.599e-05,2]
[347899378,1736189431976,-500.0,8.599e-05,2]
[347899379,1736189431986,-428.13,8.599e-05,2]
[347899380,1736189431996,-500.0,8.599e-05,2]
[347899381,1736189432005,-500.0,8.599e-05,2]
[347899382,1736189432014,-500.0,8.599e-05,2]
[347899383,1736189432024,-500.0,8.599e-05,2]
[347899384,1736189432034,-500.0,8.599e-05,2]
[347899385,1736189432043,-231.75,8.599e-05,2]
[347899386,1736189432052,-1935042.7457766,8.6e-05,2]
[347899387,1736189432064,-677264.52794483,8.6e-05,2]
[347899388,1736189432079,-653.36,8.673e-05,2]
[347899389,1736189432088,-500.0,8.673e-05,2]
[347899390,1736189432098,-500.0,8.673e-05,2]
[347899391,1736189432107,-903.73,8.673e-05,2]
[347899392,1736189432116,-500.0,8.673e-05,2]
[347899393,1736189432126,-500.0,8.673e-05,2]
[347899394,1736189432136,-500.0,8.673e-05,2]
[347899395,1736189432145,-500.0,8.673e-05,2]
[347899396,1736189432154,-753.23,8.673e-05,2]
[347899397,1736189432164,-1080.44,8.673e-05,2]